[Event "Live Chess"]
[Site "Chess.com"]
[Date "2023.09.16"]
[Round "-"]
[White "NavarroChess09"]
[Black "MateusLuan08"]
[Result "1/2-1/2"]
[WhiteElo "1344"]
[BlackElo "1563"]
[TimeControl "900+5"]
[EndTime "7:21:28 PDT"]
[Termination "Partida empatada por acordo"]

1. Nf3 {[%clk 0:15:00.1]} 1... Nf6 {[%clk 0:14:59.3]} 2. d4 {[%clk 0:15:00.5]}
2... g6 {[%clk 0:15:00]} 3. Bg5 {[%clk 0:15:02]} 3... Bg7 {[%clk 0:15:03.8]} 4.
Nc3 {[%clk 0:15:04.5]} 4... d5 {[%clk 0:15:03.6]} 5. g3 {[%clk 0:15:03.3]} 5...
Nc6 {[%clk 0:15:03.2]} 6. Bg2 {[%clk 0:15:05.2]} 6... O-O {[%clk 0:15:00.4]} 7.
O-O {[%clk 0:15:07.3]} 7... Ne4 {[%clk 0:14:53.9]} 8. Nxe4 {[%clk 0:15:00.4]}
8... dxe4 {[%clk 0:14:56.3]} 9. Nd2 {[%clk 0:15:01.9]} 9... Qxd4 {[%clk
0:14:42.2]} 10. Nxe4 {[%clk 0:15:02]} 10... Qxd1 {[%clk 0:14:28.7]} 11. Raxd1
{[%clk 0:15:03.8]} 11... Bf5 {[%clk 0:14:29.7]} 12. c3 {[%clk 0:15:06.7]} 12...
Rad8 {[%clk 0:14:27.3]} 13. Rxd8 {[%clk 0:15:03]} 13... Rxd8 {[%clk 0:14:16.9]}
14. Nc5 {[%clk 0:15:00.5]} 14... b6 {[%clk 0:14:16.3]} 15. Nb7 {[%clk
0:15:01.6]} 15... f6 {[%clk 0:13:37.5]} 16. Nxd8 {[%clk 0:14:54.4]} 16... Nxd8
{[%clk 0:13:39.9]} 17. Bf4 {[%clk 0:14:57]} 17... c5 {[%clk 0:13:42.9]} 18. Bd5+
{[%clk 0:14:58.7]} 18... e6 {[%clk 0:13:44.8]} 19. Bc4 {[%clk 0:15:00.5]} 19...
Nc6 {[%clk 0:13:45.9]} 20. Rd1 {[%clk 0:15:01.1]} 20... Bf8 {[%clk 0:13:39.6]}
21. Bd6 {[%clk 0:14:59.2]} 21... Bxd6 {[%clk 0:13:28.1]} 22. Rxd6 {[%clk
0:15:04.1]} 22... Ne5 {[%clk 0:13:23.9]} 23. Bxe6+ {[%clk 0:15:01.8]} 23... Bxe6
{[%clk 0:13:27.3]} 24. Rxe6 {[%clk 0:15:06.7]} 24... Kf7 {[%clk 0:13:30.9]} 25.
Rd6 {[%clk 0:15:07.7]} 25... Ke7 {[%clk 0:13:30.3]} 26. Rd1 {[%clk 0:15:07.8]}
26... Nc4 {[%clk 0:13:33.3]} 27. b3 {[%clk 0:15:09.4]} 27... Ne5 {[%clk
0:13:29.9]} 28. f4 {[%clk 0:15:12]} 28... Ng4 {[%clk 0:13:28.9]} 29. Rd3 {[%clk
0:15:08.9]} 29... Ke6 {[%clk 0:13:18.7]} 30. h3 {[%clk 0:15:12.3]} 30... Nh6
{[%clk 0:13:19.6]} 31. Re3+ {[%clk 0:15:10.7]} 31... Kd6 {[%clk 0:12:49.5]} 32.
g4 {[%clk 0:15:06.9]} 32... Nf7 {[%clk 0:12:51.3]} 33. c4 {[%clk 0:15:09.4]}
33... Kd7 {[%clk 0:12:51]} 34. Rd3+ {[%clk 0:15:12.3]} 34... Nd6 {[%clk
0:12:49.5]} 35. e4 {[%clk 0:15:14.3]} 35... Ke7 {[%clk 0:12:50]} 36. e5 {[%clk
0:15:17.3]} 36... fxe5 {[%clk 0:12:41.6]} 37. fxe5 {[%clk 0:15:22.2]} 37... Nf7
{[%clk 0:12:45.5]} 38. Rd5 {[%clk 0:15:21.4]} 38... Ke6 {[%clk 0:12:44.9]} 39.
Kf2 {[%clk 0:15:18.1]} 39... Nxe5 {[%clk 0:12:45.8]} 40. Ke3 {[%clk 0:15:19.4]}
40... Nf7 {[%clk 0:12:42.7]} 41. Ke4 {[%clk 0:15:20.7]} 41... Nd6+ {[%clk
0:12:43.6]} 42. Kf4 {[%clk 0:15:19.3]} 42... h6 {[%clk 0:12:27.7]} 43. Re5+
{[%clk 0:15:20.2]} 43... Kf6 {[%clk 0:12:25.8]} 44. g5+ {[%clk 0:15:18.6]} 44...
hxg5+ {[%clk 0:12:27.2]} 45. Rxg5 {[%clk 0:15:21.8]} 45... Nf7 {[%clk
0:12:27.2]} 46. Rd5 {[%clk 0:15:18.2]} 46... Ke6 {[%clk 0:12:25.6]} 47. h4
{[%clk 0:15:15.8]} 47... Nh6 {[%clk 0:12:20.6]} 48. Kg5 {[%clk 0:15:11.9]} 48...
Nf5 {[%clk 0:12:16.1]} 49. Kxg6 {[%clk 0:15:11.4]} 49... Nxh4+ {[%clk
0:12:18.6]} 50. Kg5 {[%clk 0:15:12.5]} 50... Nf3+ {[%clk 0:12:20.6]} 51. Kg6
{[%clk 0:15:13.7]} 51... Nh4+ {[%clk 0:12:21.5]} 52. Kg7 {[%clk 0:15:16.2]}
52... Nf5+ {[%clk 0:12:13.3]} 53. Kf8 {[%clk 0:15:11.5]} 53... Nd6 {[%clk
0:12:13.2]} 54. Rh5 {[%clk 0:15:08.8]} 54... a5 {[%clk 0:12:02.9]} 55. Rh6+
{[%clk 0:15:10]} 55... Kd7 {[%clk 0:12:01.1]} 56. Rh7+ {[%clk 0:15:07.9]} 56...
Kc6 {[%clk 0:12:03.6]} 57. Rh6 {[%clk 0:15:08.5]} 57... Kd7 {[%clk 0:12:03.5]}
58. Rh7+ {[%clk 0:15:10.6]} 58... Kc6 {[%clk 0:11:58]} 59. Ke7 {[%clk
0:15:14.4]} 59... Kc7 {[%clk 0:11:35.9]} 60. Ke6+ {[%clk 0:15:13.8]} 60... Kc6
{[%clk 0:11:40]} 61. Re7 {[%clk 0:15:14.3]} 61... Ne4 {[%clk 0:11:01.1]} 62. Rd7
{[%clk 0:15:00.9]} 62... Ng5+ {[%clk 0:10:53.9]} 63. Kf6 {[%clk 0:15:04.5]}
63... Ne4+ {[%clk 0:10:56.3]} 64. Ke5 {[%clk 0:15:04.7]} 64... Kxd7 {[%clk
0:10:48.9]} 65. Kxe4 {[%clk 0:15:08.1]} 65... Kd6 {[%clk 0:10:50]} 66. Kd3
{[%clk 0:15:11.2]} 66... Ke5 {[%clk 0:10:51]} 67. a4 {[%clk 0:15:13.3]} 67...
Kd6 {[%clk 0:10:54.4]} 68. Kc3 {[%clk 0:15:16.6]} 68... Kc6 {[%clk 0:10:58.1]}
69. Kd3 {[%clk 0:15:20.2]} 69... Kd6 {[%clk 0:10:51.8]} 70. Ke4 {[%clk
0:15:21.2]} 70... Ke6 {[%clk 0:10:52]} 71. Kf4 {[%clk 0:15:24]} 71... Kf6 {[%clk
0:10:53]} 72. Ke4 {[%clk 0:15:27.5]} 1/2-1/2

[Event "Live Chess"]
[Site "Chess.com"]
[Date "2023.09.16"]
[Round "-"]
[White "lucasportolelis"]
[Black "icarohm"]
[Result "0-1"]
[WhiteElo "1668"]
[BlackElo "1876"]
[TimeControl "900+5"]
[EndTime "7:21:28 PDT"]
[Termination "icarohm venceu por desistência"]

1. e4 {[%clk 0:15:04.2]} 1... e6 {[%clk 0:15:03]} 2. d4 {[%clk 0:15:05.9]} 2...
d5 {[%clk 0:15:04.6]} 3. Nc3 {[%clk 0:15:09.6]} 3... Bb4 {[%clk 0:15:07]} 4. e5
{[%clk 0:15:10.9]} 4... c5 {[%clk 0:15:08.4]} 5. a3 {[%clk 0:15:10.6]} 5...
Bxc3+ {[%clk 0:15:11.8]} 6. bxc3 {[%clk 0:15:14.3]} 6... Qb6 {[%clk 0:15:14.6]}
7. Be3 {[%clk 0:15:05.3]} 7... c4 {[%clk 0:15:16.9]} 8. Rb1 {[%clk 0:15:04.4]}
8... Qc7 {[%clk 0:15:19.5]} 9. Qg4 {[%clk 0:15:03.4]} 9... f6 {[%clk 0:15:20.8]}
10. Bf4 {[%clk 0:14:52.6]} 10... Qf7 {[%clk 0:15:02.2]} 11. Be2 {[%clk
0:14:40.3]} 11... Nc6 {[%clk 0:15:01.2]} 12. Nf3 {[%clk 0:14:30.2]} 12... Nge7
{[%clk 0:14:57.6]} 13. exf6 {[%clk 0:14:25.5]} 13... gxf6 {[%clk 0:14:59.9]} 14.
Kd2 {[%clk 0:13:42.2]} 14... e5 {[%clk 0:15:00.8]} 15. dxe5 {[%clk 0:13:44.3]}
15... Bxg4 {[%clk 0:15:03.7]} 0-1

[Event "Live Chess"]
[Site "Chess.com"]
[Date "2023.09.16"]
[Round "-"]
[White "KauaShelby015"]
[Black "Samueeeseeel"]
[Result "1-0"]
[WhiteElo "1281"]
[BlackElo "904"]
[TimeControl "900+5"]
[EndTime "7:22:11 PDT"]
[Termination "KauaShelby015 venceu por xeque-mate"]

1. e4 {[%clk 0:15:03.3]} 1... c5 {[%clk 0:15:01]} 2. Nf3 {[%clk 0:15:07.1]} 2...
Nc6 {[%clk 0:15:04.2]} 3. d4 {[%clk 0:15:08.9]} 3... cxd4 {[%clk 0:15:06.6]} 4.
Nxd4 {[%clk 0:15:12.7]} 4... Nxd4 {[%clk 0:15:10.3]} 5. Qxd4 {[%clk 0:15:16.6]}
5... d6 {[%clk 0:15:12]} 6. Nc3 {[%clk 0:15:18.1]} 6... e5 {[%clk 0:15:15.3]} 7.
Qa4+ {[%clk 0:15:03.1]} 7... Bd7 {[%clk 0:15:17.2]} 8. Qb3 {[%clk 0:15:06.6]}
8... Qc7 {[%clk 0:15:19]} 9. Bc4 {[%clk 0:15:04.8]} 9... Bc6 {[%clk 0:15:07.6]}
10. O-O {[%clk 0:14:56.3]} 10... g6 {[%clk 0:15:06.8]} 11. f4 {[%clk 0:14:52.9]}
11... Bg7 {[%clk 0:15:05.2]} 12. fxe5 {[%clk 0:14:55]} 12... Qb6+ {[%clk
0:14:56.6]} 13. Kh1 {[%clk 0:14:54.8]} 13... f5 {[%clk 0:14:48.9]} 14. exf6
{[%clk 0:14:43.7]} 14... Nxf6 {[%clk 0:14:50.4]} 15. Bf7+ {[%clk 0:14:44.2]}
15... Kd7 {[%clk 0:14:49.4]} 16. Qe6+ {[%clk 0:14:39.7]} 16... Kc7 {[%clk
0:14:50.7]} 17. Bf4 {[%clk 0:14:38.7]} 17... Rad8 {[%clk 0:14:43]} 18. Rad1
{[%clk 0:14:39.1]} 18... Qc5 {[%clk 0:14:41.2]} 19. Rd3 {[%clk 0:13:44.3]} 19...
Rd7 {[%clk 0:14:37.6]} 20. Rfd1 {[%clk 0:13:42.3]} 20... Rhd8 {[%clk 0:14:40.4]}
21. Nd5+ {[%clk 0:13:07]} 21... Bxd5 {[%clk 0:14:38.4]} 22. exd5 {[%clk
0:13:08.8]} 22... Qf2 {[%clk 0:14:24.4]} 23. Rc3+ {[%clk 0:13:06.1]} 23... Kb6
{[%clk 0:14:23.4]} 24. Be3+ {[%clk 0:13:07.9]} 24... Qxe3 {[%clk 0:14:20]} 25.
Qxe3+ {[%clk 0:13:08.5]} 25... Kb5 {[%clk 0:14:21.4]} 26. Rb3+ {[%clk
0:13:08.5]} 26... Ka4 {[%clk 0:14:23.2]} 27. Qxa7# {[%clk 0:13:08.8]} 1-0

[Event "Live Chess"]
[Site "Chess.com"]
[Date "2023.09.16"]
[Round "-"]
[White "dani_reitas"]
[Black "IanFLS"]
[Result "0-1"]
[WhiteElo "1012"]
[BlackElo "1875"]
[TimeControl "900+5"]
[EndTime "7:22:16 PDT"]
[Termination "IanFLS venceu por desistência"]

1. d4 {[%clk 0:15:02.6]} 1... Nf6 {[%clk 0:15:01.5]} 2. c4 {[%clk 0:15:05.8]}
2... g6 {[%clk 0:15:05.6]} 3. Nc3 {[%clk 0:15:10]} 3... d5 {[%clk 0:15:09.7]} 4.
e3 {[%clk 0:15:14.6]} 4... Bg7 {[%clk 0:15:13.5]} 5. Nf3 {[%clk 0:15:18.4]} 5...
O-O {[%clk 0:15:17.4]} 6. Be2 {[%clk 0:15:22.1]} 6... c6 {[%clk 0:15:21.7]} 7.
O-O {[%clk 0:15:25.9]} 7... e6 {[%clk 0:15:26.1]} 8. Qd2 {[%clk 0:15:09.3]} 8...
b6 {[%clk 0:15:28.7]} 9. b3 {[%clk 0:15:12.6]} 9... Bb7 {[%clk 0:15:32]} 10. Bb2
{[%clk 0:14:50.3]} 10... Re8 {[%clk 0:15:35.1]} 11. Rfe1 {[%clk 0:14:49.4]}
11... Nbd7 {[%clk 0:15:38.7]} 12. Rac1 {[%clk 0:14:38.8]} 12... Rc8 {[%clk
0:15:41.4]} 13. Bd3 {[%clk 0:14:16.8]} 13... c5 {[%clk 0:15:34.3]} 14. e4 {[%clk
0:13:59.5]} 14... cxd4 {[%clk 0:15:24.4]} 15. Nxd4 {[%clk 0:14:01.6]} 15... dxe4
{[%clk 0:15:26.9]} 16. Nxe4 {[%clk 0:14:04.5]} 16... Nxe4 {[%clk 0:15:29.7]} 17.
Bxe4 {[%clk 0:14:07.2]} 17... Bxe4 {[%clk 0:15:31.6]} 18. Rxe4 {[%clk
0:14:09.5]} 18... Nc5 {[%clk 0:15:36.1]} 19. Ree1 {[%clk 0:14:02]} 19... Rc7
{[%clk 0:15:20.6]} 20. Rcd1 {[%clk 0:13:44.5]} 20... Rd7 {[%clk 0:15:24.3]} 21.
Qe3 {[%clk 0:13:01.9]} 21... e5 {[%clk 0:15:23]} 22. Nc6 {[%clk 0:13:02.3]}
22... Qc7 {[%clk 0:15:18.3]} 23. Rxd7 {[%clk 0:12:13]} 23... Qxd7 {[%clk
0:15:12.6]} 24. Nxe5 {[%clk 0:12:04.9]} 24... Bxe5 {[%clk 0:15:16]} 25. Bxe5
{[%clk 0:12:08.1]} 25... f6 {[%clk 0:15:18.9]} 26. b4 {[%clk 0:10:55.4]} 26...
Rxe5 {[%clk 0:15:16.8]} 27. Qc1 {[%clk 0:10:51.7]} 27... Rxe1+ {[%clk
0:15:19.4]} 28. Qxe1 {[%clk 0:10:55.2]} 28... Nd3 {[%clk 0:15:22.7]} 29. Qb1
{[%clk 0:10:54.6]} 29... Qf5 {[%clk 0:15:20]} 30. Qc2 {[%clk 0:10:42]} 30...
Nxb4 {[%clk 0:15:22.7]} 31. Qb3 {[%clk 0:10:40.5]} 31... Qd3 {[%clk 0:14:59.8]}
32. Qxb4 {[%clk 0:10:31]} 32... Qd1+ {[%clk 0:15:02.6]} 0-1

[Event "Live Chess"]
[Site "Chess.com"]
[Date "2023.09.16"]
[Round "-"]
[White "VIAJEMCENTRODATERRA"]
[Black "Torugomilho11"]
[Result "1-0"]
[WhiteElo "2011"]
[BlackElo "1123"]
[TimeControl "900+5"]
[EndTime "7:22:17 PDT"]
[Termination "VIAJEMCENTRODATERRA venceu por desistência"]

1. d4 {[%clk 0:15:01.9]} 1... Nf6 {[%clk 0:14:57]} 2. c4 {[%clk 0:15:06.4]} 2...
e6 {[%clk 0:14:48.5]} 3. Nc3 {[%clk 0:15:09.3]} 3... g6 {[%clk 0:14:45.6]} 4. e4
{[%clk 0:15:12.8]} 4... Bg7 {[%clk 0:14:45.5]} 5. Be2 {[%clk 0:15:06.9]} 5...
O-O {[%clk 0:14:43.2]} 6. Nf3 {[%clk 0:15:09.8]} 6... Nc6 {[%clk 0:14:39.7]} 7.
e5 {[%clk 0:15:01.7]} 7... Ne8 {[%clk 0:14:37.2]} 8. O-O {[%clk 0:14:46.6]} 8...
d6 {[%clk 0:14:25.6]} 9. exd6 {[%clk 0:14:44]} 9... Nxd6 {[%clk 0:14:28.4]} 10.
Be3 {[%clk 0:14:30.6]} 10... Bd7 {[%clk 0:14:19.6]} 11. Rc1 {[%clk 0:14:25.9]}
11... Nf5 {[%clk 0:14:19.5]} 12. Qd2 {[%clk 0:13:58.4]} 12... Nxe3 {[%clk
0:14:01.4]} 13. Qxe3 {[%clk 0:14:00.2]} 13... Qe7 {[%clk 0:14:05.3]} 14. d5
{[%clk 0:13:54.8]} 14... exd5 {[%clk 0:14:06]} 15. Nxd5 {[%clk 0:13:35.8]} 15...
Qxe3 {[%clk 0:14:08.8]} 16. Nxe3 {[%clk 0:13:34]} 16... Bxb2 {[%clk 0:14:05.5]}
17. Rb1 {[%clk 0:13:36]} 17... Bg7 {[%clk 0:14:07.9]} 18. Rxb7 {[%clk
0:13:38.3]} 18... Rac8 {[%clk 0:13:44.2]} 19. Nd5 {[%clk 0:13:24.5]} 19... Rfe8
{[%clk 0:13:13.7]} 20. Bd1 {[%clk 0:13:23.3]} 20... Bg4 {[%clk 0:12:55.3]} 21.
h3 {[%clk 0:13:12.5]} 21... Bxf3 {[%clk 0:12:57.8]} 22. Bxf3 {[%clk 0:13:17.4]}
22... Re6 {[%clk 0:12:56]} 23. Rxc7 {[%clk 0:13:04.2]} 23... Rxc7 {[%clk
0:12:48.4]} 24. Nxc7 {[%clk 0:13:06.3]} 24... Rd6 {[%clk 0:12:50.6]} 25. Rb1
{[%clk 0:12:38.3]} 25... Be5 {[%clk 0:12:31.7]} 26. Nd5 {[%clk 0:12:21.1]} 26...
Kg7 {[%clk 0:12:08.6]} 27. g3 {[%clk 0:12:09.2]} 27... Nd4 {[%clk 0:11:57.4]}
28. Bg2 {[%clk 0:11:55.8]} 28... Rc6 {[%clk 0:11:11.6]} 29. Ne3 {[%clk 0:11:56]}
29... Rc7 {[%clk 0:10:57.5]} 30. Rb7 {[%clk 0:11:40.3]} 30... Rxb7 {[%clk
0:10:55.1]} 31. Bxb7 {[%clk 0:11:42.6]} 31... Ne2+ {[%clk 0:10:55.2]} 32. Kg2
{[%clk 0:11:44.4]} 32... Nc3 {[%clk 0:10:57.8]} 33. c5 {[%clk 0:11:11.7]} 33...
Nb5 {[%clk 0:09:53.9]} 34. c6 {[%clk 0:10:52]} 34... Nc7 {[%clk 0:09:36.2]} 35.
Nc4 {[%clk 0:10:10.6]} 35... Kf6 {[%clk 0:09:03.9]} 36. f4 {[%clk 0:09:54.7]}
36... Bd4 {[%clk 0:08:30.6]} 37. Kf3 {[%clk 0:09:47.5]} 37... Ke6 {[%clk
0:08:24.2]} 38. Ke4 {[%clk 0:09:48.5]} 38... Bb6 {[%clk 0:08:11.2]} 39. Bc8+
{[%clk 0:08:51.2]} 39... Ke7 {[%clk 0:08:04.6]} 40. f5 {[%clk 0:08:39.8]} 40...
gxf5+ {[%clk 0:07:36.5]} 41. Bxf5 {[%clk 0:08:39.1]} 41... h6 {[%clk 0:07:32]}
42. Kf4 {[%clk 0:08:37.8]} 42... Ne6+ {[%clk 0:07:18.9]} 43. Bxe6 {[%clk
0:06:29.3]} 43... fxe6 {[%clk 0:07:18.5]} 44. Nxb6 {[%clk 0:06:29.7]} 44... axb6
{[%clk 0:07:22]} 45. Ke5 {[%clk 0:06:33.4]} 45... b5 {[%clk 0:07:13]} 46. g4
{[%clk 0:06:28.1]} 46... b4 {[%clk 0:07:14.1]} 47. h4 {[%clk 0:06:30.7]} 1-0

[Event "Live Chess"]
[Site "Chess.com"]
[Date "2023.09.16"]
[Round "-"]
[White "Mozart5501"]
[Black "GabrielGGCF"]
[Result "1-0"]
[WhiteElo "1788"]
[BlackElo "1402"]
[TimeControl "900+5"]
[EndTime "7:23:11 PDT"]
[Termination "Mozart5501 venceu por xeque-mate"]

1. e4 {[%clk 0:15:03.8]} 1... e5 {[%clk 0:15:03.1]} 2. Nf3 {[%clk 0:15:08.2]}
2... Nc6 {[%clk 0:15:07.5]} 3. d4 {[%clk 0:15:12.7]} 3... Bb4+ {[%clk
0:15:03.5]} 4. c3 {[%clk 0:15:15.5]} 4... Bd6 {[%clk 0:15:03.2]} 5. d5 {[%clk
0:15:08.1]} 5... Nce7 {[%clk 0:15:01.1]} 6. Bg5 {[%clk 0:15:10.3]} 6... h6
{[%clk 0:14:58]} 7. Be3 {[%clk 0:15:14.7]} 7... Ng6 {[%clk 0:14:58.6]} 8. Nbd2
{[%clk 0:15:09.7]} 8... Nf6 {[%clk 0:14:58.4]} 9. c4 {[%clk 0:15:12.2]} 9... Bb4
{[%clk 0:14:59.4]} 10. Bd3 {[%clk 0:15:13.5]} 10... d6 {[%clk 0:14:57.2]} 11.
O-O {[%clk 0:15:17]} 11... Bg4 {[%clk 0:15:00.6]} 12. Qa4+ {[%clk 0:15:19.7]}
12... c6 {[%clk 0:14:56.4]} 13. Qxb4 {[%clk 0:15:13.8]} 13... Nh5 {[%clk
0:14:45.7]} 14. Qxb7 {[%clk 0:15:13.6]} 14... Ngf4 {[%clk 0:14:46.8]} 15. Qxc6+
{[%clk 0:15:17]} 15... Kf8 {[%clk 0:14:48.5]} 16. Bxf4 {[%clk 0:15:21.6]} 16...
Bxf3 {[%clk 0:14:48.9]} 17. Nxf3 {[%clk 0:15:22.8]} 17... Nxf4 {[%clk
0:14:52.8]} 18. Bc2 {[%clk 0:15:15.4]} 18... Rb8 {[%clk 0:14:50.4]} 19. b3
{[%clk 0:15:18.2]} 19... Qf6 {[%clk 0:14:52.8]} 20. Rfe1 {[%clk 0:15:17.6]}
20... Qg6 {[%clk 0:14:54.6]} 21. g3 {[%clk 0:15:20.1]} 21... Nh3+ {[%clk
0:14:57.2]} 22. Kg2 {[%clk 0:15:24.7]} 22... Nf4+ {[%clk 0:14:59.6]} 23. Kh1
{[%clk 0:15:25.6]} 23... Nh3 {[%clk 0:14:54.2]} 24. Nxe5 {[%clk 0:15:11.6]}
24... dxe5 {[%clk 0:14:49.6]} 25. Qxg6 {[%clk 0:15:14]} 25... fxg6 {[%clk
0:14:53.9]} 26. Kg2 {[%clk 0:15:16.8]} 26... Ng5 {[%clk 0:14:53.8]} 27. f4
{[%clk 0:15:19.2]} 27... exf4 {[%clk 0:14:56.7]} 28. gxf4 {[%clk 0:15:23.9]}
28... Nf7 {[%clk 0:14:59.8]} 29. e5 {[%clk 0:15:27.6]} 29... Re8 {[%clk
0:15:00]} 30. Bxg6 {[%clk 0:15:29.2]} 30... Re7 {[%clk 0:14:58.9]} 31. Bxf7
{[%clk 0:15:31.1]} 31... Rxf7 {[%clk 0:15:02.9]} 32. d6 {[%clk 0:15:31.7]} 32...
Rxf4 {[%clk 0:15:06.4]} 33. e6 {[%clk 0:15:36.2]} 33... Rd4 {[%clk 0:15:03.2]}
34. e7+ {[%clk 0:15:07.1]} 34... Kf7 {[%clk 0:15:03.9]} 35. Rf1+ {[%clk
0:15:09.4]} 35... Ke6 {[%clk 0:15:01.8]} 36. Rf8 {[%clk 0:15:10.4]} 36... Rd2+
{[%clk 0:14:45.6]} 37. Kf1 {[%clk 0:15:11.6]} 37... Rxd6 {[%clk 0:14:05.8]} 38.
e8=Q# {[%clk 0:15:10.6]} 1-0

[Event "Live Chess"]
[Site "Chess.com"]
[Date "2023.09.16"]
[Round "-"]
[White "P3treis"]
[Black "Du_Felix"]
[Result "0-1"]
[WhiteElo "904"]
[BlackElo "1932"]
[TimeControl "900+5"]
[EndTime "7:24:16 PDT"]
[Termination "Du_Felix venceu por desistência"]

1. e4 {[%clk 0:15:03.7]} 1... d6 {[%clk 0:14:57.2]} 2. d4 {[%clk 0:15:06.4]}
2... Nf6 {[%clk 0:14:57.4]} 3. Nc3 {[%clk 0:15:05.1]} 3... g6 {[%clk 0:14:55.4]}
4. Nf3 {[%clk 0:14:56.2]} 4... Bg7 {[%clk 0:14:56.1]} 5. Bg5 {[%clk 0:14:47.7]}
5... O-O {[%clk 0:14:57.1]} 6. Bd3 {[%clk 0:14:49.5]} 6... Nbd7 {[%clk
0:13:53.8]} 7. e5 {[%clk 0:14:41.9]} 7... Ne8 {[%clk 0:13:47.2]} 8. O-O {[%clk
0:14:31.6]} 8... dxe5 {[%clk 0:13:40.6]} 9. dxe5 {[%clk 0:14:34.5]} 9... Nxe5
{[%clk 0:13:42.9]} 10. Nxe5 {[%clk 0:14:36.2]} 10... Bxe5 {[%clk 0:13:46.5]} 11.
Bh6 {[%clk 0:14:39.4]} 11... Bg7 {[%clk 0:13:47.8]} 12. Bxg7 {[%clk 0:14:42.3]}
12... Kxg7 {[%clk 0:13:52.2]} 13. h3 {[%clk 0:14:31.5]} 13... Nf6 {[%clk
0:13:27]} 14. Re1 {[%clk 0:14:21.6]} 14... Be6 {[%clk 0:13:24.4]} 15. Qe2 {[%clk
0:14:15.1]} 15... c6 {[%clk 0:13:23.3]} 16. Bc4 {[%clk 0:14:18]} 16... Bxc4
{[%clk 0:12:36.1]} 17. Qxc4 {[%clk 0:14:20.1]} 17... e6 {[%clk 0:12:38.5]} 18.
Rad1 {[%clk 0:13:48.5]} 18... Qc7 {[%clk 0:12:13.4]} 19. Ne4 {[%clk 0:13:25.8]}
19... Nxe4 {[%clk 0:12:12.2]} 20. Qxe4 {[%clk 0:12:58.9]} 20... Rad8 {[%clk
0:12:11.5]} 21. b4 {[%clk 0:12:39.8]} 21... Rxd1 {[%clk 0:12:11.6]} 22. Rxd1
{[%clk 0:12:42.8]} 22... Rd8 {[%clk 0:12:15.6]} 23. Rxd8 {[%clk 0:12:03.4]}
23... Qxd8 {[%clk 0:12:18.2]} 24. Qe5+ {[%clk 0:12:06.3]} 24... Kg8 {[%clk
0:12:20.4]} 25. c4 {[%clk 0:11:52.8]} 25... h5 {[%clk 0:11:47.4]} 26. a4 {[%clk
0:11:42.9]} 26... Qd1+ {[%clk 0:09:57.4]} 27. Kh2 {[%clk 0:11:42.4]} 27... Qxa4
{[%clk 0:09:58.9]} 28. Qb8+ {[%clk 0:11:43.4]} 28... Kh7 {[%clk 0:10:02.2]} 29.
Qxb7 {[%clk 0:11:46.9]} 29... Kg7 {[%clk 0:09:58.4]} 30. b5 {[%clk 0:11:38.4]}
30... cxb5 {[%clk 0:09:52.2]} 31. cxb5 {[%clk 0:11:41.6]} 31... Qf4+ {[%clk
0:09:34.6]} 32. g3 {[%clk 0:11:22.9]} 32... Qxf2+ {[%clk 0:09:33]} 33. Kh1
{[%clk 0:11:25.1]} 33... e5 {[%clk 0:09:00.9]} 34. Qe4 {[%clk 0:11:04.2]} 34...
Qd4 {[%clk 0:08:53.7]} 35. Qb7 {[%clk 0:10:38.2]} 35... e4 {[%clk 0:08:49]} 36.
g4 {[%clk 0:10:11.9]} 36... hxg4 {[%clk 0:08:47]} 37. hxg4 {[%clk 0:10:15.4]}
37... e3 {[%clk 0:08:48.8]} 38. Qg2 {[%clk 0:10:10.9]} 38... Qd1+ {[%clk
0:08:47.7]} 39. Qg1 {[%clk 0:09:54]} 39... e2 {[%clk 0:08:26.4]} 0-1

[Event "Live Chess"]
[Site "Chess.com"]
[Date "2023.09.16"]
[Round "-"]
[White "MateusLuan08"]
[Black "KauaShelby015"]
[Result "1-0"]
[WhiteElo "1566"]
[BlackElo "1278"]
[TimeControl "900+5"]
[EndTime "7:24:20 PDT"]
[Termination "MateusLuan08 venceu por desistência"]

1. e4 {[%clk 0:14:58.4]} 1... c5 {[%clk 0:15:01.8]} 2. Nf3 {[%clk 0:14:58.8]}
2... d6 {[%clk 0:15:03.8]} 3. d4 {[%clk 0:14:57]} 3... cxd4 {[%clk 0:15:07.1]}
4. Nxd4 {[%clk 0:14:59.2]} 4... Nf6 {[%clk 0:15:11.1]} 5. Nc3 {[%clk 0:14:59]}
5... a6 {[%clk 0:15:13]} 6. Be3 {[%clk 0:14:56.6]} 6... Nc6 {[%clk 0:15:11.6]}
7. Bc4 {[%clk 0:14:59]} 7... b5 {[%clk 0:15:04.6]} 8. Bb3 {[%clk 0:15:02.7]}
8... e6 {[%clk 0:14:59.9]} 9. Nxc6 {[%clk 0:15:05.6]} 9... Qc7 {[%clk
0:14:40.3]} 10. Nd4 {[%clk 0:15:05.6]} 10... Qxc3+ {[%clk 0:14:40.9]} 11. bxc3
{[%clk 0:15:08.9]} 1-0

[Event "Live Chess"]
[Site "Chess.com"]
[Date "2023.09.16"]
[Round "-"]
[White "RickBrasil"]
[Black "maylso"]
[Result "1/2-1/2"]
[WhiteElo "1863"]
[BlackElo "1429"]
[TimeControl "900+5"]
[EndTime "7:24:34 PDT"]
[Termination "Empate por repetição"]

1. e4 {[%clk 0:15:02.8]} 1... e5 {[%clk 0:15:03.5]} 2. Nf3 {[%clk 0:15:05.6]}
2... Nc6 {[%clk 0:15:08.1]} 3. d4 {[%clk 0:15:10.1]} 3... d6 {[%clk 0:14:59.5]}
4. dxe5 {[%clk 0:14:56.9]} 4... dxe5 {[%clk 0:14:57.7]} 5. Qxd8+ {[%clk
0:15:00.9]} 5... Nxd8 {[%clk 0:14:59.2]} 6. Be3 {[%clk 0:15:04.3]} 6... Bd6
{[%clk 0:14:52.2]} 7. Nfd2 {[%clk 0:14:52.6]} 7... Nf6 {[%clk 0:14:56.2]} 8. f3
{[%clk 0:14:56.6]} 8... O-O {[%clk 0:14:59.7]} 9. Nc4 {[%clk 0:15:01.2]} 9...
Nc6 {[%clk 0:14:37.1]} 10. Nxd6 {[%clk 0:14:56.2]} 10... cxd6 {[%clk 0:14:39.5]}
11. Nc3 {[%clk 0:15:00.8]} 11... Be6 {[%clk 0:14:41.7]} 12. O-O-O {[%clk
0:15:03.5]} 12... Rfd8 {[%clk 0:14:36]} 13. Bg5 {[%clk 0:14:52]} 13... h6 {[%clk
0:14:28.4]} 14. Bxf6 {[%clk 0:14:55.8]} 14... gxf6 {[%clk 0:14:31.6]} 15. Nb5
{[%clk 0:14:53.1]} 15... Rd7 {[%clk 0:14:24.6]} 16. Rxd6 {[%clk 0:14:47.8]}
16... Rxd6 {[%clk 0:14:11.9]} 17. Nxd6 {[%clk 0:14:52.7]} 17... Nd4 {[%clk
0:14:03.7]} 18. Nxb7 {[%clk 0:14:32]} 18... Rc8 {[%clk 0:14:05.1]} 19. c3 {[%clk
0:14:31.4]} 19... Bxa2 {[%clk 0:14:04.8]} 20. Na5 {[%clk 0:13:57.1]} 20... Rc5
{[%clk 0:13:57.7]} 21. Nb7 {[%clk 0:13:30.4]} 21... Nb3+ {[%clk 0:13:57.2]} 22.
Kc2 {[%clk 0:13:27.1]} 22... Rc7 {[%clk 0:13:59.1]} 23. Nd6 {[%clk 0:13:23]}
23... Rd7 {[%clk 0:13:54.6]} 24. Nc4 {[%clk 0:13:04.3]} 24... Na1+ {[%clk
0:13:54.2]} 25. Kc1 {[%clk 0:13:08.5]} 25... Nb3+ {[%clk 0:13:58.2]} 26. Kc2
{[%clk 0:13:12.8]} 26... Na1+ {[%clk 0:14:02.9]} 27. Kc1 {[%clk 0:13:17.4]}
27... Nb3+ {[%clk 0:14:07.5]} 28. Kc2 {[%clk 0:13:22.3]} 1/2-1/2